Cogmind - Beta 12 @@@ ROGUE MODE // 2023.10.04 @ 23:46:42 Player: Trantor Result: Self-destructed Performance ------------- Evolutions (2) 1000 Regions Visited (5) 1000 Robots Destroyed (37) 185 Value Destroyed (897) 897 Prototype IDs (25) 500 Alien Tech Used (0) 0 Bonus (300) 300 TOTAL SCORE: 3882 Bonus ------- Aligned with FarCom 300 Cogmind --------- Core Integrity 391/550 Matter 215/300 Energy 265/265 System Corruption 0% Temperature Critical (624) Movement Walking (130) Location -8/Materials Parts ------- > --- POWER (1) -------- Improved Ion Engine > --- PROPULSION (4) --- Improved Titanium Leg Improved Titanium Leg Improved Titanium Leg Improved Titanium Leg > --- UTILITY (3) ------ Large Storage Unit Improved Targeting Computer > --- WEAPON (3) ------- Beamcaster Heavy Assault Rifle Gauss Cannon > --- INVENTORY (15) --- Ion Engine Light Nuclear Core Aluminum Leg Aluminum Leg High-capacity Battery (250) High-capacity Matter Pod (200) Trap Scanner Advanced Visual Processing Unit Armor Integrity Analyzer Improved Light Armor Plating Trap Reconfigurator Advanced Beam Cannon Shotgun Shotgun Hammer Peak State ------------ > --- POWER ------------ Improved Ion Engine > --- PROPULSION ------- Improved Titanium Leg Improved Titanium Leg Improved Titanium Leg Improved Titanium Leg > --- UTILITY ---------- Large Storage Unit Improved Targeting Computer Light Armor Plating > --- WEAPON ----------- Beamcaster Heavy Assault Rifle Gauss Cannon > --- INVENTORY -------- Ion Engine Light Nuclear Core Aluminum Leg Aluminum Leg High-capacity Battery High-capacity Matter Pod Trap Scanner Advanced Visual Processing Unit Armor Integrity Analyzer Improved Light Armor Plating Trap Reconfigurator Advanced Beam Cannon Shotgun Shotgun Hammer [Rating: 36] Favorites ----------- Power Ion Engine Engine Ion Engine Propulsion Aluminum Leg Leg Aluminum Leg Utility Large Storage Unit Storage Large Storage Unit Processor Targeting Computer Protection Light Armor Plating Weapon Light Cannon Energy Gun Beamcaster Ballistic Gun Assault Rifle Ballistic Cannon Light Cannon Build | -11 -10 -10 -10 -9 -8 ------- Run | Jun Mat Min Exi Min Mat Slots Evolved 4 | . . . . . 4 Power . | . . . . . . Propulsion 2 | . . . . . 2 Utility 1 | . . . . . 1 Weapon 1 | . . . . . 1 Parts Attached 42 | . 17 9 1 3 12 Power 7 | . 4 1 . 1 1 Engine 7 | . 4 1 . 1 1 Core . | . . . . . . Reactor . | . . . . . . Propulsion 18 | . 5 6 . 1 6 Treads . | . . . . . . Leg 18 | . 5 6 . 1 6 Wheel . | . . . . . . Hover . | . . . . . . Flight . | . . . . . . Utility 7 | . 3 . 1 . 3 Device . | . . . . . . Storage 3 | . 2 . 1 . . Processor 2 | . 1 . . . 1 Hackware . | . . . . . . Protection 2 | . . . . . 2 Artifact . | . . . . . . Weapon 10 | . 5 2 . 1 2 Energy Gun 2 | . 1 1 . . . Energy Cannon . | . . . . . . Ballistic Gun 3 | . 1 . . . 2 Ballistic Cannon 5 | . 3 1 . 1 . Launcher . | . . . . . . Special Weapon . | . . . . . . Impact Weapon . | . . . . . . Slashing Weapon . | . . . . . . Piercing Weapon . | . . . . . . Special Melee Weapon . | . . . . . . Unidentified Prototypes . | . . . . . . Parts Lost 6 | . 3 1 . 1 1 Power 2 | . 1 . . 1 . Propulsion 1 | . 1 . . . . Utility 1 | . . . . . 1 Weapon 2 | . 1 1 . . . Highest Loss Streak 3 | . 3 1 . 1 1 To Critical Strikes . | . . . . . . Average Slot Usage (%) 96 | . 87 100 100 100 99 Engine 13 | . 13 14 14 14 9 Leg 29 | . 28 28 28 28 36 Storage 13 | . 14 14 14 14 9 Processor 10 | . 3 14 14 14 9 Protection 1 | . . . . . 8 Energy Gun 7 | . 6 1 14 14 9 Ballistic Gun 2 | . 5 . . . 9 Ballistic Cannon 17 | . 15 26 14 14 9 Naked Turns . | . . . . . . Heaviest Build 45 | 11 31 35 35 37 45 Greatest Support 80 | 20 20 20 20 20 80 Greatest Overweight (x) 1 | . 1 1 1 1 1 Average Overweight (x) . | . . 1 1 1 . Largest Inventory Capacity 15 | . 15 15 15 15 15 Average Capacity 14 | . 14 15 15 15 15 Most Carried 15 | . 15 15 15 15 15 Average Carried 14 | . 13 14 15 14 14 Final Capacity 15 | 8 15 15 15 15 15 Final Carried 15 | 6 15 15 15 15 15 Class Distribution -------------------- 69% | Mutant 17% | Scavenger-Mutant 6% | Skirmisher 5% | Scavenger-Skirmisher Dominant Class ---------------- Mutant | -10/Materials Mutant | -10/Mines Scavenger-Mutant | -10/Exiles Mutant | -9/Mines Skirmisher | -8/Materials Resources | -11 -10 -10 -10 -9 -8 ----------- Run | Jun Mat Min Exi Min Mat Matter Collected 1418 | 200 344 522 . 133 219 Remotely . | . . . . . . Salvage Created 1153 | . 319 323 . 65 446 Parts 80 | . 17 28 . . 35 Haulers Intercepted 4 | . 2 . . . 2 Recyclers Shooed . | . . . . . . Parts Field Recycled . | . . . . . . Retrieved Matter . | . . . . . . Parts Self-Destructed . | . . . . . . Prevented . | . . . . . . Kills | -11 -10 -10 -10 -9 -8 ------- Run | Jun Mat Min Exi Min Mat Combat Hostiles Destroyed 36 | . 8 14 . 7 7 Guns 14 | . 5 . . 3 6 Cannons 22 | . 3 14 . 4 1 Classes Destroyed 9 | . 3 1 . 1 4 Worker 2 | . . . . . 2 Builder 1 | . . . . . 1 Hauler 4 | . 2 . . . 2 Watcher 1 | . . . . . 1 Swarmer 12 | . 3 6 . . 3 Grunt 11 | . 5 6 . . . Brawler 1 | . . . . . 1 Sentry 5 | . . 2 . . 3 Assembled 7 | . . . . 7 . Best Kill Streak 5 | . 3 3 . 2 5 Combat Bots Only 3 | . 3 3 . 2 3 Max Kills in Single Turn 2 | . 1 1 . 1 2 Gunslinging . | . . . . . . Exploded . | . . . . . . Melee . | . . . . . . Uniques/NPCs Destroyed . | . . . . . . Combat | -11 -10 -10 -10 -9 -8 -------- Run | Jun Mat Min Exi Min Mat Damage Taken 1894 | . 542 602 . 271 479 Core 408 | . 93 111 . 45 159 Absorbed by Shields . | . . . . . . Regen/Repaired (Parts) 118 | . 118 . . . . Core Remaining (%) 50 | 100 . . . . . Volleys Fired 111 | . 35 32 . 23 21 Largest 3 | . 2 2 . 2 3 Hottest 146 | . 100 70 . 123 146 Shots Fired 228 | . 70 64 . 33 61 Gun 97 | . 47 . . 10 40 Cannon 131 | . 23 64 . 23 21 Launcher . | . . . . . . Special . | . . . . . . Kinetic 175 | . 46 64 . 23 42 Thermal 53 | . 24 . . 10 19 Explosive . | . . . . . . Electromagnetic . | . . . . . . Robot Hit Streak 14 | . 8 14 . 8 13 Robot Miss Streak 6 | . 3 3 . 6 3 Penetration Max 1 | . . . . . 1 Secondary Targets . | . . . . . . Shots Hit Robots 128 | . 41 40 . 15 32 Core Hits 55 | . 13 18 . 8 16 Critical Kills . | . . . . . . Critical Parts Destroyed . | . . . . . . Critical Strikes 5 | . 1 . . . 4 Burn 2 | . 1 . . . 1 Blast 3 | . . . . . 3 Melee Attacks . | . . . . . . Impact . | . . . . . . Slashing . | . . . . . . Piercing . | . . . . . . Sneak Attacks . | . . . . . . Combat Hostiles . | . . . . . . Follow-up Attacks . | . . . . . . Damage Inflicted 2536 | . 677 694 . 294 871 Guns 956 | . 373 . . 105 478 Cannons 1580 | . 304 694 . 189 393 Explosions . | . . . . . . Melee . | . . . . . . Ramming . | . . . . . . Kinetic 1933 | . 453 694 . 189 597 Thermal 603 | . 224 . . 105 274 Explosive . | . . . . . . Electromagnetic . | . . . . . . Impact . | . . . . . . Slashing . | . . . . . . Piercing . | . . . . . . Highest Corruption . | . . . . . . Average Corruption . | . . . . . . Corruption Purged . | . . . . . . Corruption Blocked . | . . . . . . Overload Shots . | . . . . . . Overflow Damage 33 | . . . . 23 10 Projectiles 33 | . . . . 23 10 Explosions . | . . . . . . Melee . | . . . . . . Knockbacks 13 | . 3 7 . 1 2 Impact . | . . . . . . Kinetic 13 | . 3 7 . 1 2 Secondary . | . . . . . . Self-Inflicted Damage . | . . . . . . Shots . | . . . . . . Rammed . | . . . . . . Targets Rammed . | . . . . . . Kicked . | . . . . . . Crushed . | . . . . . . Highest Temperature 628 | . 500 135 . 357 628 Average Temperature 129 | . 156 40 . 128 201 Received Heat Transfer 567 | . 237 204 . . 126 Effects 13 | . 6 . . . 7 Shutdowns 2 | . 1 . . . 1 Short Circuit 3 | . 1 . . . 2 Damage (minor) 3 | . . . . . 3 Damage (major) 4 | . 4 . . . . Damage (core) 1 | . . . . . 1 Siege Activations . | . . . . . . Robots Corrupted . | . . . . . . Combat Hostiles . | . . . . . . Parts Fried . | . . . . . . Impact Corruptions . | . . . . . . Robots Melted . | . . . . . . Combat Hostiles . | . . . . . . Parts Melted . | . . . . . . Heat Transferred 1332 | . 592 . . 185 555 Parts Sabotaged . | . . . . . . Parts Stolen . | . . . . . . Parts Stripped . | . . . . . . Power Chain Reactions . | . . . . . . Missiles Intercepted . | . . . . . . Alert | -11 -10 -10 -10 -9 -8 ------- Run | Jun Mat Min Exi Min Mat Peak Influence 190 | . 148 190 . 2 181 Initial 5 | . . 5 . . . Average 45 | . 54 74 . . 35 Maximum Alert Level . | . . . . . . Low Security (%) 100 | . 100 100 . 100 100 Level 1 . | . . . . . . Level 2 . | . . . . . . Level 3 . | . . . . . . Level 4 . | . . . . . . Level 5 . | . . . . . . High Security . | . . . . . . Max Security . | . . . . . . Squads Dispatched 3 | . 1 1 . . 1 Investigation 2 | . 1 1 . . . Extermination . | . . . . . . Reinforcement 1 | . . . . . 1 Assault . | . . . . . . Garrison . | . . . . . . Intercept . | . . . . . . Searches Triggered . | . . . . . . Construction Impeded . | . . . . . . Haulers Reinforced . | . . . . . . Active Scanning Responses . | . . . . . . Cargo Convoy Interrupts . | . . . . . . Stealth | -11 -10 -10 -10 -9 -8 --------- Run | Jun Mat Min Exi Min Mat Distress Signals 2 | . . . . . 2 Communications Jammed . | . . . . . . Distress Signals . | . . . . . . Times Spotted 59 | . 21 14 . 9 15 Peak Tracking Total 5 | . 4 3 . 3 5 Tactical Retreats 4 | . 1 . . 2 1 Traps | -11 -10 -10 -10 -9 -8 ------- Run | Jun Mat Min Exi Min Mat Traps Triggered 2 | . 2 . . . . Indirectly . | . . . . . . Trap Hack Attempts . | . . . . . . Triggered . | . . . . . . Disarmed . | . . . . . . Reprogrammed . | . . . . . . Reused . | . . . . . . Traps Extracted . | . . . . . . Installed . | . . . . . . Triggered . | . . . . . . Machines | -11 -10 -10 -10 -9 -8 ---------- Run | Jun Mat Min Exi Min Mat Machines Disabled 5 | . 1 3 . . 1 Max in Single Turn 1 | . 1 1 . . 1 Garrison Access 1 | . . . . . 1 Machines Repaired . | . . . . . . Machines Sabotaged . | . . . . . . Overloaded Fab Kills . | . . . . . . Hacking | -11 -10 -10 -10 -9 -8 --------- Run | Jun Mat Min Exi Min Mat Machines Accessed 15 | . 9 1 2 1 2 Terminals 8 | . 8 . . . . Fabricators . | . . . . . . Repair Stations 1 | . 1 . . . . Recycling Units . | . . . . . . Scanalyzers 1 | . . . . . 1 Garrison Access 1 | . . . . . 1 Total Hacks 36 | . 28 1 2 1 4 Successful 21 | . 14 1 2 1 3 Failed 15 | . 14 . . . 1 Catastrophic . | . . . . . . Database Lockouts . | . . . . . . Manual 16 | . 15 . 1 . . Terminals 24 | . 24 . . . . Fabricators . | . . . . . . Repair Stations 4 | . 4 . . . . Recycling Units . | . . . . . . Scanalyzers 3 | . . . . . 3 Garrison Access 1 | . . . . . 1 Terminal Hacks 9 | . 5 1 2 1 . Record 1 | . . . 1 . . Part Schematic 1 | . 1 . . . . Robot Analysis 2 | . 2 . . . . Prototype ID Bank 1 | . 1 . . . . Open Door 2 | . . 1 . 1 . Branch Access Points 1 | . 1 . . . . EX-Prototype ID Bank 1 | . . . 1 . . Fabricator Hacks . | . . . . . . Repair Station Hacks 4 | . 4 . . . . Scan Component 2 | . 2 . . . . Repair 2 | . 2 . . . . Recycling Unit Hacks . | . . . . . . Scanalyzer 2 | . . . . . 2 Insert Component 1 | . . . . . 1 Analyze 1 | . . . . . 1 Garrison Access Hacks 1 | . . . . . 1 Seal Access 1 | . . . . . 1 Unauthorized Hacks 5 | . 5 . . . . Terminals 5 | . 5 . . . . Botnet 4 | . 4 . . . . Operators 1 | . 1 . . . . Fabricators . | . . . . . . Repair Stations . | . . . . . . Recycling Units . | . . . . . . Scanalyzers . | . . . . . . Garrison Access . | . . . . . . Data Cores Recovered . | . . . . . . Used . | . . . . . . Hacking Detections 10 | . 9 . . . 1 Full Trace Events . | . . . . . . Feedback Events . | . . . . . . Feedback Blocked . | . . . . . . Robot Schematics Acquired . | . . . . . . Robots Built . | . . . . . . Authchips . | . . . . . . Time . | . . . . . . Total Robot Build Rating . | . . . . . . Part Schematics Acquired 2 | . 1 . . . 1 Parts Built . | . . . . . . Authchips . | . . . . . . Time . | . . . . . . Total Part Build Rating . | . . . . . . Parts Repaired 2 | . 2 . . . . Time 52 | . 52 . . . . Parts Recycled . | . . . . . . Recycled Matter . | . . . . . . Retrieved Matter . | . . . . . . Retrieved Components . | . . . . . . Parts Scanalyzed 1 | . . . . . 1 Part Schematics Acquired 1 | . . . . . 1 Parts Damaged . | . . . . . . Bothacking | -11 -10 -10 -10 -9 -8 ------------ Run | Jun Mat Min Exi Min Mat Used RIF Installer . | . . . . . . Robots Hacked . | . . . . . . Non-combat . | . . . . . . Combat . | . . . . . . Robot Hacks Applied . | . . . . . . Relay Couplers Released . | . . . . . . Fabnet Peak Effective % . | . . . . . . Robots Rewired . | . . . . . . Allies Hacked . | . . . . . . Hacks Repelled . | . . . . . . Allies | -11 -10 -10 -10 -9 -8 -------- Run | Jun Mat Min Exi Min Mat Total Allies 1 | . . 1 . . . Largest Group 1 | . . 1 . . . Highest-Rated Group 31 | . . 31 . . . Highest-Rated Ally 31 | . . 31 . . . Total Orders . | . . . . . . Ally Attacks . | . . . . . . Total Damage . | . . . . . . Kills . | . . . . . . Allies Corrupted . | . . . . . . Allies Melted . | . . . . . . Intel | -11 -10 -10 -10 -9 -8 ------- Run | Jun Mat Min Exi Min Mat Robot Analysis Total 2 | . 2 . . . . Derelict Logs Recovered 4 | . . 3 . 1 . Drone Launches . | . . . . . . Drone Recoveries . | . . . . . . Exploration | -11 -10 -10 -10 -9 -8 ------------- Run | Jun Mat Min Exi Min Mat Turns Passed 5754 | . 1516 1638 642 1223 735 Spaces Moved 2781 | 1 697 794 337 553 399 Core . | . . . . . . Treads . | . . . . . . Legs 2781 | 1 697 794 337 553 399 Wheels . | . . . . . . Hover . | . . . . . . Flight . | . . . . . . Fastest Speed 120 | 120 120 190 190 190 122 Average Speed 184 | 120 186 190 190 190 154 Slowest Speed 190 | 120 190 190 190 190 190 Overloaded Moves . | . . . . . . Propulsion Burnouts . | . . . . . . Robots Hopped . | . . . . . . Cave-ins Triggered . | . . . . . . Exploration Rate (%) 65 | 2 99 100 71 86 33 Regions Visited 5 Branch Regions 3 Pre-discovered Areas 2 | . . 1 1 . . Known Exits Taken 1 | . 1 . . . . Unknown Exits Taken 4 | 1 . 1 1 1 . Scrap Searched 5 | . . 3 . 2 . Spaces Dug . | . . . . . . Terrain Destroyed 15 | . . . . 3 12 Melee . | . . . . . . Projectile 15 | . . . . 3 12 AOE . | . . . . . . Terrain Rammed . | . . . . . . Walls Destroyed . | . . . . . . Machines Disabled . | . . . . . . Actions | -11 -10 -10 -10 -9 -8 --------- Run | Jun Mat Min Exi Min Mat Total 3219 | . 844 866 340 693 476 Wait 227 | . 71 15 . 114 27 Move 2776 | . 696 793 336 552 399 Hop . | . . . . . . Pick Up 27 | . 13 5 1 . 8 Fast Attach 8 | . 7 1 . . . Attach 10 | . 4 1 . 1 4 Detach 2 | . 2 . . . . Swap 24 | . 6 7 1 2 8 Drop 34 | . 10 12 2 1 9 Fire 111 | . 35 32 . 23 21 Melee . | . . . . . . Ram . | . . . . . . Kick . | . . . . . . Crush . | . . . . . . Escape Stasis . | . . . . . . Rewire . | . . . . . . Trap . | . . . . . . Miscellaneous . | . . . . . . Route ------- -11/Junkyard -10/Materials (discovered 5 exits: *Mat x3 / *Min x2) -10/Mines (discovered 3 exits: *Mat x2 / *Exi) -10/Exiles (discovered 2 exits: *Min x2) -9/Mines -8/Materials History --------- Turn | Location | Event 1 | -11/Junkyard | Discovered new exit (range 0) 1 | -11/Junkyard | Entered Materials 243 | -10/Materials | Discovered new exit (range 14) 293 | -10/Materials | Discovered new exit (range 7) 308 | -10/Materials | Build established: Mutant 668 | -10/Materials | Discovered new exit (range 10) 820 | -10/Materials | Lost 3 parts (1p1n1w) 989 | -10/Materials | Identified exit to Mines 1074 | -10/Materials | Repaired Ion Engine 1102 | -10/Materials | Repaired Lgt. Cannon 1258 | -10/Materials | Discovered new exit (range 15) 1470 | -10/Materials | Discovered new exit (range 15) 1517 | -10/Materials | Entered Mines 1665 | -10/Mines | Met a Derelict shopkeep closing up shop 1820 | -10/Mines | Identified exit to Materials 1865 | -10/Mines | Deemed a non-threat by the Exiles lab entrance 1867 | -10/Mines | Discovered new exit (range 5) 1972 | -10/Mines | Core integrity fell below 50% 2081 | -10/Mines | Core integrity fell below 20% 2189 | -10/Mines | A weapon hastily lodged in a ceiling crevice suddenly fell to the ground 2544 | -10/Mines | Learned location of Storage (-7) 2934 | -10/Mines | Learned Materials trap positions 2941 | -10/Mines | Discovered exit to Materials (range 5) 2946 | -10/Mines | Escorted by a lone wolf Derelict 3155 | -10/Mines | Entered Exiles 3155 | -10/Exiles | Accompanied by 1 ally 3180 | -10/Exiles | Discovered new exit (range 15) 3207 | -10/Exiles | Met 8R-AWN 3233 | -10/Exiles | Met EX-HEX 3244 | -10/Exiles | Build established: Scavenger-Mutant 3353 | -10/Exiles | Met EX-DEC 3387 | -10/Exiles | Learned location of Zion (-7) 3421 | -10/Exiles | Met EX-BIN 3451 | -10/Exiles | Aligned with FarCom system 3453 | -10/Exiles | Given EX-Vault access code 3505 | -10/Exiles | Opened EX-Vault 3522 | -10/Exiles | Found Trap Reconfigurator 3565 | -10/Exiles | Warned to stay clear of 0b10 Research branches 3782 | -10/Exiles | Discovered new exit (range 10) 3797 | -10/Exiles | Left Exiles lab with Trap Reconfigurator 3797 | -10/Exiles | Entered Mines 3806 | -9/Mines | Met a Derelict bent on vengeance 3854 | -9/Mines | Assembled infested the area 4019 | -9/Mines | Met a Derelict who couldn't figure out how to use a Trap Extractor 4269 | -9/Mines | Build established: Mutant 4300 | -9/Mines | Learned Materials emergency access door positions 4994 | -9/Mines | Discovered new exit (range 14) 5020 | -9/Mines | Entered Materials 5020 | -8/Materials | Evolved 4 slots: Propulsion x2, Utility x1, Weapon x1 5021 | -8/Materials | Loaded intel: 12 trap records 5343 | -8/Materials | Build established: Scavenger-Skirmisher 5671 | -8/Materials | Build established: Skirmisher 5755 | -8/Materials | Self-destructed Last Messages --------------- 05744_ Power failure, Imp. Ion Engine shutdown. 05744_ Overheating: Beamcaster damaged (-23). 05745_ Overheating: Core damaged (-88). 05745_ U-05 Engineer builds a Wall. 05746_ Destroyed Lgt. Armor Plating. 05746_ K-01 Serf collects debris. 05747_ K-01 Serf destroyed. 05749_ Overheating: Imp. Titanium Leg damaged (-48). 05749_ Slug penetrates G-47 Trooper. 05749_ K-01 Serf suffers critical hit (Blast). 05749_ Destroyed Wheel. 05749_ K-01 Serf knocked back. 05749_ U-05 Engineer builds a Wall. 05751_ Overheating: Broken Imp. Titanium Leg damaged (-68). 05752_ K-01 Serf collects debris. 05752_ U-05 Engineer builds a Door. 05753_ R-06 Scavenger collects Lgt. Treads. 05754_ Hvy. Assault Rifle broken. 05754_ Overheating: Short circuit. 05754_ K-01 Serf collects debris. Map ----- +----------------------------------------------------+ | ?????????????????????????????????????????????????? | | ?????????????????????????????????????????????????? | | ?????????????????????????????????????????????????? | | ?????????????????????????????????????????????????? | | ?????????????????????????????????????????????????? | | ?????????????????????????????????????????????????? | | ?????????????????????????????????????????????????? | | ?????????????????????????????????????????????????? | | ?????????????????????????????????????????????????? | | ????????????????????^????????????????????????????? | | ??????????????????????? ???????????????????????? | | ?????????????????????? ???????????????????????? | | ?????????????????????? ???????????????????????? | | ??????????????????????# %???????????????????????? | | ??????????????????????# #??????????????????????? | | #????????????????+????# =#??????????????????????? | | +?????????????????????/Yk%#??????????????????????? | | #?????????????????????#ug #?##???????????????????? | | #?????????????????????# ## ????????????????????? | | #?????????????????????# # ????????????????????? | | #?????????????????????#%u%# ?????????????????????? | | #?????????????????????#==k#%?????????????????????? | | #?????????????????????#%=g#??????????????????????? | | #?????????????????????#%![r??????????????????????? | | #?????????????????????#!!%#??????????????????????? | | #?????????????????????#%*@#??????????????????????? | | #######################=[[# """??????????????????? | | == w !!=%%%*# ^???????????????? | | [[= !! [% #??????????????????????? | | ![%[ !**=[ ##?????????????????????? | | ## ############ * #??????????????????????? | | ?# ############ #??????????????????????? | | ?# ## ] # #??????????????????????? | | ## ## ] # #??????????????????????? | | + =# """ #?????????????????????? | | ## """"" # """ #?????????????????????? | | ## """"" + """ #?????????????????????? | | ## """"" # #?????????????????????? | | ## # #?????????????????????? | | ## ##############?????????????????????? | | ########+###??????????????????????????????????? | | #??????# ############?????????????????????????? | | #??????# * ??????????????????????? | | #??????#!!! ??????????????????????? | | #??????#! """ """ ""????????????????????????? | | ######## """ """ """???????????????????????? | | %"" """ """ ""???????????????????? | | ??????????????????? | | ! ??????????????????? | | ###### ##########??????????????????????? | +----------------------------------------------------+ Best States ------------- Heat Dissipation 31 Energy Generation 12 Energy Capacity 265 Matter Stores 300 Matter Capacity 300 Sight Range 16 Terrain Scan Density 10 Armor Coverage 150 Evasion (%) 55 Targeting Accuracy 6 Item Schematics ----------------- Hcp. Matter Pod | -10/Materials | Hacked Armor Integrity Analyzer | -8/Materials | Scanalyzed Robot Schematics ------------------ None Fabricated ------------ Nothing Alien Tech Used ----------------- None Achievements -------------- None Challenges ------------ None Game ------ Seed FluxMicrowarpSpear Manual? 0 Play Time 00:40:09 Cumulative 255.8 hours Start 2023.10.04 @ 23:06:53 End 2023.10.04 @ 23:46:42 Sessions 1 Manual Loads 0 Difficulty Rogue Special Mode None Game No. 143 Rogue 99 Adventurer 44 Explorer 0 Win Type - Total 2 Types 2/0/0/0/0/0/0/0/0 Lore% 60 Gallery% 63 Achievement% 57 Wizard Run 0 Options --------- ASCII 0 Keyboard 1 Movement Vi Keybinds 1 Fullscreen 2 Font 18/X11Bold Map View 76x50 Tactical HUD 1 Map Filters NONE Filters NONE Steam 1 RUN: 36777685-adbd-4c25-99b7-fd7848c0571b